Cogmind - Beta 11 X4 --- EXPLORER MODE // 2021.05.16 @ 02:14:06 Player: Krytoss Result: Escaped! Performance ------------- Evolutions (9) 4500 Regions Visited (27) 5400 Robots Destroyed (523) 2615 Value Destroyed (33350) 33350 Prototype IDs (32) 640 Alien Tech Used (0) 0 Bonus (17284) 17284 TOTAL SCORE: 63789 Bonus ------- High Alert Combat Kills 420 Follower Combat Kills 7627 Entered Garrisons 2400 Used RIF Installer 6000 Win 3000 Friendly Fire -2163 Cogmind --------- Core Integrity 1121/1600 Matter 355/450 Energy 202/220 System Corruption 10% Temperature Cool (30) Movement Treading (180) Location To Epsilon Eridani Parts ------- > --- POWER (2) -------- Mini Fusion Reactor Light Quantum Reactor > --- PROPULSION (6) --- Improved Heavy Siege Treads Improved Heavy Siege Treads Improved Heavy Siege Treads > --- UTILITY (13) ----- Experimental Heat Sink Experimental Coolant Injector High-capacity Storage Unit Compact Matter Pod Enhanced Optical Array Advanced Targeting Computer Hardened Heavy Armor Plating Antimissile System Relay Coupler [C] (62) Relay Coupler [C] (87) Relay Coupler [Sentry] (38) Corruption Screen > --- WEAPON (5) ------- Railgun Linear Accelerator Linear Accelerator Linear Accelerator Advanced Remote Datajack > --- INVENTORY (20) --- Particle Reactor Light Quantum Reactor Biometal Heavy Treads Relay Coupler [NC] (46) Relay Coupler [C] (62) Relay Coupler [Sentry] (50) Relay Coupler [Demolisher] (50) Experimental Field Recycling Unit (0) Enhanced Quantum Rifle Enhanced Quantum Rifle Hardcell Cannon Hardcell Cannon Hardcell Cannon Hardcell Cannon Fusion Bomb Launcher Fusion Bomb Launcher Advanced Remote Datajack Gravity Flail Peak State ------------ > --- POWER ------------ Particle Reactor Light Quantum Reactor > --- PROPULSION ------- Biometal Heavy Treads Biometal Heavy Treads Advanced Heavy Siege Treads > --- UTILITY ---------- Experimental Heat Sink Experimental Coolant Injector High-capacity Storage Unit Enhanced Optical Array Advanced Targeting Computer Centrium Heavy Armor Plating Advanced Powered Armor Improved Remote Force Field Relay Coupler [NC] Relay Coupler [C] Relay Coupler [Sentry] Relay Coupler [Hunter] > --- WEAPON ----------- Hypervelocity Railgun Hypervelocity Railgun Linear Accelerator Linear Accelerator Advanced Remote Datajack > --- INVENTORY -------- Light Quantum Reactor Experimental Heat Sink High-capacity Storage Unit Relay Coupler [C] Relay Coupler [C] Relay Coupler [Demolisher] Relay Coupler [Hunter] High-powered Tractor Beam Experimental Field Recycling Unit Railgun Railgun Linear Accelerator Linear Accelerator Gamma Bomb Array Smartbomb Launcher Fusion Bomb Launcher Advanced Remote Datajack Advanced Remote Datajack Gravity Flail [Rating: 201] Favorites ----------- Power Heavy Antimatter Reactor Engine Cooled Ion Engine Power Core Reinforced Fission Core Reactor Heavy Antimatter Reactor Propulsion Armored Heavy Treads Treads Armored Heavy Treads Leg Aluminum Leg Utility Advanced Targeting Computer Device Experimental Heat Sink Storage High-capacity Storage Unit Processor Advanced Targeting Computer Hackware Relay Coupler [Hunter] Protection Improved Medium Armor Plating Weapon Linear Accelerator Energy Gun Enhanced Force Rifle Ballistic Gun Hypervelocity Railgun Ballistic Cannon Linear Accelerator Launcher Smartbomb Launcher Special Weapon Advanced Remote Datajack Impact Weapon Heavy Hammer Special Melee Weapon Improved Datajack Build | -11 -10 -9 -8 -8 -8 -8 -7 -7 -6 -6 -6 -6 -5 -5 -4 -4 -4 -4 -3 -3 -3 -3 -2 -2 -1 -1 -1 ------- Run | Scr Mat Mat Mat Gar Mat Gar Fac Gar Fac Gar Fac Gar Fac Gar Fac Gar Fac Gar Res Gar Res Gar Res Gar Acc Gar Acc Slots Evolved 19 | . 1 2 2 . . . 2 . 2 . . . 2 . 2 . . . 2 . . . 2 . 2 . . Power 1 | . . . . . . . . . . . . . . . . . . . . . . . 1 . . . . Propulsion 4 | . . . 1 . . . . . . . . . 1 . . . . . 1 . . . 1 . . . . Utility 11 | . 1 1 . . . . 2 . 2 . . . 1 . 2 . . . 1 . . . . . 1 . . Weapon 3 | . . 1 1 . . . . . . . . . . . . . . . . . . . . . 1 . . Parts Attached 438 | 2 9 8 8 9 8 7 8 9 7 22 8 9 17 16 18 12 25 24 26 18 28 19 15 19 25 29 33 Power 27 | . 2 1 . . . . . . . 2 1 . 2 1 1 . . 2 . 2 . . 1 3 1 5 3 Engine 5 | . 2 1 . . . . . . . 2 . . . . . . . . . . . . . . . . . Core 4 | . . . . . . . . . . . 1 . 2 1 . . . . . . . . . . . . . Reactor 18 | . . . . . . . . . . . . . . . 1 . . 2 . 2 . . 1 3 1 5 3 Propulsion 57 | . 2 2 4 2 3 1 . . 2 2 2 . 1 . 1 1 3 4 4 1 3 3 3 . 5 2 6 Treads 57 | . 2 2 4 2 3 1 . . 2 2 2 . 1 . 1 1 3 4 4 1 3 3 3 . 5 2 6 Leg . | . . . . . . . . . . . . . . . . . . . . . . . . . . . . Wheel . | . . . . . . . . . . . . . . . . . . . . . . . . . . . . Hover . | . . . . . . . . . . . . . . . . . . . . . . . . . . . . Flight . | . . . . . . . . . . . . . . . . . . . . . . . . . . . . Utility 198 | 1 2 2 . 3 3 2 6 5 3 7 4 8 7 8 8 6 10 10 12 9 16 10 4 8 9 15 20 Device 76 | . 1 1 . 1 2 . 5 1 2 1 1 6 1 3 3 1 6 2 5 . 8 3 1 3 5 3 11 Storage 11 | . 1 . . . 1 . . . . . . . 2 . . . . 1 . . 3 1 . . 1 . 1 Processor 12 | 1 . 1 . . . . . . . . 1 . 1 . 1 . 1 1 1 . 1 . 1 1 . 1 . Hackware 69 | . . . . . . 2 . 3 . 5 1 2 2 5 2 5 2 3 2 7 3 5 2 3 2 9 4 Protection 30 | . . . . 2 . . 1 1 1 1 1 . 1 . 2 . 1 3 4 2 1 1 . 1 1 2 4 Artifact . | . . . . . . . . . . . . . . . . . . . . . . . . . . . . Weapon 156 | 1 3 3 4 4 2 4 2 4 2 11 1 1 7 7 8 5 12 8 10 6 9 6 7 8 10 7 4 Energy Gun 1 | . . . . . . . . . . . . . 1 . . . . . . . . . . . . . . Energy Cannon . | . . . . . . . . . . . . . . . . . . . . . . . . . . . . Ballistic Gun 34 | 1 2 1 3 1 . . . . 1 1 . . 1 4 . 1 3 2 4 . 1 2 . 2 2 2 . Ballistic Cannon 43 | . 1 1 . . 1 3 . . . 5 . . . 1 2 1 4 3 3 2 3 1 2 2 4 3 1 Launcher 29 | . . . . 2 . 1 1 3 . 2 . . 1 1 1 2 . 2 1 2 1 2 3 1 1 1 1 Special Weapon 28 | . . . . . . . . . . . . 1 2 1 4 1 3 1 2 1 3 1 2 2 1 1 2 Impact Weapon 12 | . . 1 1 1 . . . . 1 . . . 2 . 1 . 2 . . 1 1 . . 1 . . . Slashing Weapon . | . . . . . . . . . . . . . . . . . . . . . . . . . . . . Piercing Weapon . | . . . . . . . . . . . . . . . . . . . . . . . . . . . . Special Melee Weapon 9 | . . . . . 1 . 1 1 . 3 1 . . . . . . . . . . . . . 2 . . Unidentified Prototypes 9 | . . . . . . . . . . . . . 2 . 1 . 2 . 1 . 2 . . 1 . . . Parts Lost 30 | . 1 . . . . . . . . 4 . . . 1 1 . . 5 1 . . 1 . . . 10 6 Power 4 | . 1 . . . . . . . . 1 . . . . . . . . . . . . . . . 2 . Propulsion 1 | . . . . . . . . . . 1 . . . . . . . . . . . . . . . . . Utility 16 | . . . . . . . . . . 1 . . . 1 . . . 3 1 . . 1 . . . 4 5 Weapon 9 | . . . . . . . . . . 1 . . . . 1 . . 2 . . . . . . . 4 1 Highest Loss Streak 4 | . 1 . . . . . . . . 2 . . . 1 1 . . 4 1 . . 1 . . . 3 2 Average Slot Usage (%) 89 | . 94 100 100 100 100 100 100 100 99 98 94 93 87 87 89 85 89 88 88 86 85 85 82 79 81 85 84 Engine 1 | . 12 10 8 8 8 8 7 7 6 6 1 . . . . . . . . . . . . . . . . Reactor 3 | . . . . . . . . . . . . . . . 4 5 5 4 4 4 4 4 7 8 7 6 7 Treads 13 | . 6 20 25 25 25 25 21 21 18 17 13 12 10 11 10 10 10 9 12 13 13 13 11 12 11 11 11 Device 10 | . 7 20 16 8 8 1 14 14 24 10 6 9 11 9 10 14 11 6 9 9 9 9 8 6 6 10 11 Storage 6 | . 12 10 8 8 8 8 7 7 6 6 6 6 5 5 5 5 5 8 9 9 8 8 8 8 6 3 6 Processor 8 | . 12 10 8 8 8 8 7 7 6 6 6 6 10 11 10 10 10 9 10 10 8 9 8 8 7 6 7 Hackware 16 | . . . . . . 6 7 7 6 13 23 21 16 16 25 25 25 24 18 18 18 13 14 15 16 20 16 Protection 5 | . . . . 7 8 8 7 7 6 11 7 6 5 5 5 . 3 5 5 5 4 8 5 5 5 4 3 Ballistic Gun 6 | . 19 10 16 16 16 16 10 7 6 6 . . 1 9 10 1 9 3 3 1 3 3 4 2 4 7 5 Ballistic Cannon 8 | . 1 10 8 8 8 8 14 14 12 11 18 18 9 4 5 5 5 11 9 7 8 8 7 3 6 6 8 Launcher 1 | . . . . 7 4 1 2 5 1 2 . . . . . 4 . 1 . 1 . 1 . 3 1 . . Special Weapon 2 | . . . . . . . . . . . . 5 4 5 3 4 4 3 4 3 3 2 3 3 3 3 2 Naked Turns . | . . . . . . . . . . . . . . . . . . . . . . . . . . . . Heaviest Build 178 | 21 31 42 45 48 48 53 64 66 63 72 70 65 90 96 97 96 102 112 118 131 146 153 166 171 178 172 150 Greatest Support 230 | 20 40 40 60 60 60 70 70 70 80 88 88 88 120 120 130 145 145 140 175 175 165 148 205 205 230 230 230 Greatest Overweight (x) 1 | 1 . 1 . . . . . . . 1 . . . . . . . 1 . . . 1 . . . . 1 Average Overweight (x) . | . . . . . . . . . . . . . . . . . . . . . . . . . . . . Largest Inventory Capacity 20 | 10 15 15 15 15 15 15 15 15 15 15 15 15 20 20 20 20 20 20 20 20 20 20 20 20 20 20 20 Average Capacity 18 | 10 11 15 15 15 15 15 15 15 15 15 15 15 19 20 20 20 20 20 20 20 20 20 20 20 20 20 20 Most Carried 20 | 7 14 15 15 15 15 15 15 15 15 15 15 15 20 20 20 20 20 20 20 20 20 20 20 20 20 20 20 Average Carried 18 | 7 9 14 14 14 14 14 14 14 14 14 14 14 18 19 19 19 19 19 19 19 19 19 19 19 19 18 19 Final Capacity 20 | 10 15 15 15 15 15 15 15 15 15 15 15 15 20 20 20 20 20 20 20 20 20 20 20 20 20 20 20 Final Carried 20 | 7 14 15 15 15 15 15 15 15 15 15 15 15 20 20 20 20 20 20 19 20 20 20 19 20 20 20 19 Class Distribution -------------------- 35% | Botlord-Mutant 22% | Botlord-Gunner 10% | Botlord-Tank 9% | Hacker-Mutant 5% | Bothacker-Mutant 5% | Hacker-Gunner 3% | Bothacker-Gunner Dominant Class ---------------- Hacker-Mutant | -10/Materials Hacker-Mutant | -9/Materials Hacker-Gunner | -8/Materials Hacker-Gunner | -8/Garrison Hacker-Gunner | -8/Materials Hacker-Mutant | -8/Garrison Hacker-Skirmisher | -7/Factory Hacker-Gunner | -7/Garrison Bothacker-Skirmisher | -6/Factory Bothacker-Tank | -6/Garrison Bothacker-Gunner | -6/Factory Bothacker-Gunner | -6/Garrison Bothacker-Mutant | -5/Factory Botlord-Mutant | -5/Garrison Botlord-Gunner | -4/Factory Botlord-Mutant | -4/Garrison Botlord-Gunner | -4/Factory Botlord-Gunner | -4/Garrison Botlord-Mutant | -3/Research Botlord-Mutant | -3/Garrison Botlord-Gunner | -3/Research Botlord-Mutant | -3/Garrison Botlord-Tank | -2/Research Botlord-Mutant | -2/Garrison Botlord-Mutant | -1/Access Botlord-Mutant | -1/Garrison Botlord-Mutant | -1/Access Resources | -11 -10 -9 -8 -8 -8 -8 -7 -7 -6 -6 -6 -6 -5 -5 -4 -4 -4 -4 -3 -3 -3 -3 -2 -2 -1 -1 -1 ----------- Run | Scr Mat Mat Mat Gar Mat Gar Fac Gar Fac Gar Fac Gar Fac Gar Fac Gar Fac Gar Res Gar Res Gar Res Gar Acc Gar Acc Matter Collected 23308 | 210 196 381 584 416 198 438 253 494 229 913 317 755 731 1034 1502 766 1201 1719 578 1136 1682 1208 810 701 1124 1478 2254 Remotely 4816 | . . . . . . . . . . . . 468 276 . . 631 456 569 . . . 111 . . 464 263 1578 Salvage Created 21691 | . 203 795 976 499 206 337 364 530 333 802 422 340 868 812 2588 424 994 1246 592 661 2018 540 785 632 925 813 1986 Parts 1064 | . 23 61 40 33 15 28 22 14 19 37 19 17 47 40 120 25 53 38 39 20 99 24 39 24 40 25 103 Haulers Intercepted 11 | . . 2 3 . . . . . . . 1 . 1 . 3 . . . . . . . 1 . . . . Recyclers Shooed 14 | . . . 1 . . . . . . . . . 1 . 4 . 2 . . . 2 . 1 . 3 . . Parts Field Recycled 49 | . . . . . . . . . . . . . . . . . . . 15 . 10 7 . 6 . 11 . Retrieved Matter 1420 | . . . . . . . . . . . . . . . . . . . 337 . 472 151 . 169 . 291 . Parts Self-Destructed . | . . . . . . . . . . . . . . . . . . . . . . . . . . . . Prevented . | . . . . . . . . . . . . . . . . . . . . . . . . . . . . Kills | -11 -10 -9 -8 -8 -8 -8 -7 -7 -6 -6 -6 -6 -5 -5 -4 -4 -4 -4 -3 -3 -3 -3 -2 -2 -1 -1 -1 ------- Run | Scr Mat Mat Mat Gar Mat Gar Fac Gar Fac Gar Fac Gar Fac Gar Fac Gar Fac Gar Res Gar Res Gar Res Gar Acc Gar Acc Combat Hostiles Destroyed 417 | . 6 19 14 21 5 11 5 15 3 20 5 13 14 20 27 17 16 20 10 12 30 21 18 15 12 15 33 Guns 130 | . 6 6 5 8 . 7 1 1 1 6 . . 8 7 13 2 10 5 2 4 11 . 3 3 3 6 12 Cannons 202 | . . 13 9 6 2 3 3 11 2 11 5 13 6 8 11 3 6 13 8 6 18 6 4 3 6 6 20 AOE 84 | . . . . 7 3 1 1 3 . 3 . . . 5 3 12 . 2 . 2 1 15 10 9 3 3 1 Classes Destroyed 18 | . 5 6 2 . . . 1 1 . 1 . . . . . . . . . . 1 . . 1 . . . Worker 24 | . 1 1 2 . 1 . . . . . 1 . 2 . 6 . . . 2 . 1 . 2 . 2 . 3 Builder 23 | . 1 1 2 . . . 2 . . . . . . . 3 . . . . . . . 2 . 6 . 6 Tunneler 2 | . . . 1 . . . . . . . . . . . . . . . . . . . 1 . . . . Hauler 11 | . . 2 3 . . . . . . . 1 . 1 . 3 . . . . . . . 1 . . . . Recycler 16 | . . 1 4 . . . 1 . 2 . 1 . 1 . 2 . . . . . . . . . 2 . 2 Operator 6 | . . 1 . . 1 . . . . . . . . . . . 1 . . . 3 . . . . . . Watcher 16 | . 3 5 1 . . . 1 . 1 . 1 . . . . . . . . . 1 . 1 . 1 1 . Swarmer 113 | . 5 7 3 7 . 6 . . 2 8 . 3 1 9 . 12 1 5 2 4 3 11 11 4 . 2 7 Grunt 111 | . 1 4 7 11 3 1 3 11 . 6 3 5 2 4 8 2 4 6 1 1 10 3 2 1 1 7 4 Brawler 8 | . . 1 . 1 . 1 . . . 2 . . . 2 . . . . . . . . . . . 1 . Duelist 9 | . . 1 . . 1 1 1 1 . . . 1 . 1 1 . . . . . . . . . . . 1 Protector 1 | . . . . . . . . . . . . . . . . . . . . . . . . 1 . . . Sentry 51 | . . 6 2 2 1 2 1 2 1 2 . 1 . . 4 2 1 7 1 3 6 2 1 2 1 . 1 Demolisher 2 | . . . . . . . . . . . . . . . . . . . . . 1 . . . . . 1 Specialist 4 | . . . . . . . . 1 . 1 . . . 2 . . . . . . . . . . . . . Hunter 40 | . . . 2 . . . . . . . 1 1 1 2 . . 1 1 1 3 1 2 1 7 6 4 6 Programmer 81 | . . . . . . . 1 . . . 1 2 10 . 14 1 9 2 6 . 10 3 3 . 4 1 14 Behemoth 5 | . . . . . . . . . . 1 . . . . . . . 1 . 1 . 1 . . . 1 . Best Kill Streak 16 | . 5 4 7 7 3 4 3 6 5 9 3 3 5 6 10 4 2 4 4 5 5 7 9 5 16 4 10 Combat Bots Only 9 | . 5 3 5 7 2 4 3 6 2 9 2 3 3 6 5 4 2 4 3 5 5 7 7 5 6 4 4 Max Kills in Single Turn 5 | . 2 2 2 4 3 1 3 1 2 2 2 1 2 2 2 4 2 2 2 1 2 2 5 2 4 1 4 Gunslinging 1 | . 1 . . . . . . . . . . . . . . . . . . . . . . . . . . Exploded 5 | . . . . 4 2 1 1 1 . 1 . . . 2 2 4 . 1 . 1 1 2 5 2 1 1 1 Melee . | . . . . . . . . . . . . . . . . . . . . . . . . . . . . Uniques/NPCs Destroyed . | . . . . . . . . . . . . . . . . . . . . . . . . . . . . Combat | -11 -10 -9 -8 -8 -8 -8 -7 -7 -6 -6 -6 -6 -5 -5 -4 -4 -4 -4 -3 -3 -3 -3 -2 -2 -1 -1 -1 -------- Run | Scr Mat Mat Mat Gar Mat Gar Fac Gar Fac Gar Fac Gar Fac Gar Fac Gar Fac Gar Res Gar Res Gar Res Gar Acc Gar Acc Damage Taken 20614 | . 114 248 254 374 134 151 81 748 426 975 19 600 455 376 1485 369 729 1776 485 1360 1399 686 343 452 1845 2735 1995 Core 1709 | . 4 39 36 34 . 20 3 35 30 111 . 57 66 31 222 50 68 67 47 85 128 54 16 27 57 155 267 Absorbed by Shields 930 | . . . . . . . . . . . . . . . . . . . . . 59 . 88 285 280 218 . Reduced by Siege Mode 204 | . . . . . . . . . . . . . . . . . . 50 . . . . . . 28 126 . Core Remaining (%) 85 | 100 98 90 . . . 83 . 94 . . . 76 . 90 . . . 64 . . . 75 . 97 . . 70 Volleys Fired 1219 | . 20 47 37 28 8 31 10 31 3 45 10 40 60 69 87 36 56 70 31 58 84 46 34 55 69 67 87 Largest 5 | . 2 2 3 4 4 4 4 4 3 4 3 3 3 3 4 3 3 4 3 4 4 4 4 3 4 4 5 Hottest 285 | . 60 67 90 123 123 152 152 172 136 189 171 171 195 171 183 140 141 240 171 233 224 224 224 172 212 212 285 Shots Fired 2929 | . 39 94 111 87 25 73 34 95 9 133 30 97 115 129 221 50 148 180 71 128 222 107 75 68 131 197 260 Gun 1146 | . 37 47 74 54 16 45 14 30 3 45 . . 41 64 132 13 89 47 20 33 68 27 19 14 30 105 79 Cannon 1413 | . 2 47 37 26 8 26 20 54 6 73 30 90 44 32 66 21 49 122 40 71 136 60 38 21 67 72 155 Launcher 133 | . . . . 7 1 2 . 11 . 15 . . 2 8 3 10 . 7 . 6 2 14 6 21 8 8 2 Special 237 | . . . . . . . . . . . . 7 28 25 20 6 10 4 11 18 16 6 12 12 26 12 24 Kinetic 2512 | . 33 94 111 80 24 71 34 84 9 118 30 90 57 83 198 34 138 169 60 104 204 87 57 35 97 177 234 Thermal 47 | . 6 . . . . . . . . . . . 28 13 . . . . . . . . . . . . . Explosive 103 | . . . . 7 1 . . 5 . 2 . . 2 8 . 10 . 3 . 4 2 14 6 21 8 8 2 Electromagnetic 30 | . . . . . . 2 . 6 . 13 . . . . 3 . . 4 . 2 . . . . . . . Robot Hit Streak 79 | . 9 40 43 26 42 54 39 43 11 28 21 54 17 26 42 39 32 33 22 39 79 34 25 23 46 38 61 Robot Miss Streak 3 | . 2 2 3 2 2 1 1 1 . 2 . 1 2 2 2 1 1 2 1 1 2 1 1 1 2 1 2 Penetration Max 2 | . . . . . . . . . . 1 . 1 1 1 2 1 1 2 1 1 2 1 2 1 2 1 1 Secondary Targets 1 | . 1 . . . . . . . . . . . . . . . . . . . . . . . . . . Max Gunslinging Chain 1 | . 1 . . . . . . . . . . . . . . . . . . . . . . . . . . Shots Hit Robots 2122 | . 29 81 95 55 25 37 27 71 6 98 21 64 80 86 179 32 124 112 56 87 171 58 57 34 109 155 173 Core Hits 1007 | . 13 54 72 52 16 25 15 29 9 42 10 22 22 33 88 23 33 43 17 24 65 44 44 29 51 53 79 Critical Kills 84 | . . 1 . . . 1 . . . . . . 5 2 11 . 12 9 5 7 22 . 2 3 3 1 . Critical Parts Destroyed 153 | . . 1 2 . . . . . . 2 . . 3 4 19 3 25 16 12 16 29 5 4 1 3 6 2 Critical Strikes 299 | . . 2 2 . . 1 1 3 . 4 1 4 12 8 32 3 37 29 20 27 60 7 9 8 10 9 10 Destroy 246 | . . 1 2 . . 1 . . . 3 . . 8 6 30 3 37 27 17 24 53 6 7 6 6 7 2 Blast 52 | . . . . . . . 1 3 . 1 1 4 4 2 2 . . 2 3 3 7 1 2 2 4 2 8 Smash 1 | . . 1 . . . . . . . . . . . . . . . . . . . . . . . . . Melee Attacks 59 | . . 2 1 2 6 7 1 1 1 17 6 1 4 . 5 . 1 . . 2 1 . . 1 . . . Impact 20 | . . 2 1 2 . . . . 1 . . . 4 . 5 . 1 . . 2 1 . . 1 . . . Slashing . | . . . . . . . . . . . . . . . . . . . . . . . . . . . . Piercing . | . . . . . . . . . . . . . . . . . . . . . . . . . . . . Sneak Attacks 24 | . . 1 1 . 6 . . . . 10 6 . . . . . . . . . . . . . . . . Combat Hostiles . | . . . . . . . . . . . . . . . . . . . . . . . . . . . . Follow-up Attacks . | . . . . . . . . . . . . . . . . . . . . . . . . . . . . Damage Inflicted 66379 | 2 402 1668 1972 1842 938 646 858 2337 440 2686 589 2013 1604 1997 4709 2251 2043 2664 1100 1975 4356 4550 3439 3951 4510 4482 6355 Guns 15175 | . 402 661 982 581 186 354 205 363 70 836 . . 548 727 2281 296 1376 291 170 213 642 147 203 85 200 1516 1840 Cannons 30230 | . . 895 924 361 144 256 360 1316 94 1256 589 2013 781 565 1841 604 667 1887 930 1186 3218 1335 1101 372 2060 1881 3594 Explosions 20650 | . . . . 900 608 36 293 658 276 594 . . 275 705 587 1351 . 486 . 576 496 3068 2075 3446 2225 1085 910 Melee 178 | . . 112 66 . . . . . . . . . . . . . . . . . . . . . . . . Ramming 146 | 2 . . . . . . . . . . . . . . . . . . . . . . 60 48 25 . 11 Kinetic 44581 | . 344 1556 1906 942 330 610 565 1679 164 2092 589 2013 822 1033 4122 900 2043 2178 1100 1399 3860 1482 1304 457 2260 3397 5434 Thermal 1542 | . 58 . . . . . . 158 . 109 . . 638 259 320 . . . . . . . . . . . . Explosive 18956 | . . . . 900 608 . 293 304 276 208 . . 144 705 . 1351 . 410 . 523 496 3068 2075 3446 2225 1085 839 Electromagnetic 976 | . . . . . . 36 . 196 . 277 . . . . 267 . . 76 . 53 . . . . . . 71 Impact 178 | . . 112 66 . . . . . . . . . . . . . . . . . . . . . . . . Slashing . | . . . . . . . . . . . . . . . . . . . . . . . . . . . . Piercing . | . . . . . . . . . . . . . . . . . . . . . . . . . . . . Highest Corruption 10 | . . . . . . . . . . . . . 1 1 6 6 9 9 3 3 6 6 2 2 4 5 10 Average Corruption 4 | . . . . . . . . . . . . . 1 1 4 6 7 9 2 3 3 6 1 2 3 4 5 Corruption Purged . | . . . . . . . . . . . . . . . . . . . . . . . . . . . . Effects 584 | . . . . . . . . . . . . . 1 8 71 45 74 89 5 32 48 69 1 19 20 38 64 Message Errors 168 | . . . . . . . . . . . . . 1 4 17 17 23 21 3 8 15 20 . 9 7 11 12 Matter Fused 124 | . . . . . . . . . . . . . . . 19 8 14 25 . 7 13 17 . . 3 8 10 Heat Flow Errors 68 | . . . . . . . . . . . . . . . 5 4 9 7 1 5 7 7 . 4 4 6 9 Energy Discharges 90 | . . . . . . . . . . . . . . 2 14 6 7 14 . 10 5 10 . 5 2 2 13 Parts Rejected 2 | . . . . . . . . . . . . . . . . . . 1 . . . . . . . . 1 Data Loss (minor) 70 | . . . . . . . . . . . . . . 2 9 6 9 9 1 2 5 2 1 1 4 8 11 Data Loss (major) 16 | . . . . . . . . . . . . . . . 2 2 2 3 . . 1 4 . . . . 2 Misfires 24 | . . . . . . . . . . . . . . . 2 2 6 4 . . 1 6 . . . 2 1 Misdirections 1 | . . . . . . . . . . . . . . . . . . . . . . . . . . . 1 Weapon Failures 21 | . . . . . . . . . . . . . . . 3 . 4 5 . . 1 3 . . . 1 4 Overload Shots . | . . . . . . . . . . . . . . . . . . . . . . . . . . . . Overflow Damage 2074 | . . 115 26 52 49 . 21 45 . 26 5 107 6 14 129 100 . . 26 59 283 309 181 127 151 53 190 Projectiles 701 | . . 3 . 2 . . 19 32 . 18 5 107 . 4 90 11 . . 26 . 142 4 31 . 36 39 132 Explosions 1215 | . . . . 50 49 . 2 13 . 8 . . 6 10 39 89 . . . 59 141 305 130 127 115 14 58 Melee 158 | . . 112 26 . . . . . . . . . . . . . . . . . . . 20 . . . . Knockbacks 199 | . . 9 20 3 . 4 1 8 . 8 2 15 4 4 12 8 5 4 10 6 14 7 6 2 10 5 32 Impact 1 | . . . . . . . . . . . . . . . . . . . . . . . 1 . . . . Kinetic 190 | . . 9 19 3 . 4 1 8 . 8 2 14 4 3 12 6 5 4 10 6 13 7 4 2 10 5 31 Secondary 8 | . . . 1 . . . . . . . . 1 . 1 . 2 . . . . 1 . 1 . . . 1 Self-Inflicted Damage 111 | . . . . 5 56 . . 36 . 14 . . . . . . . . . . . . . . . . . Shots 5 | . . . . 1 1 . . 2 . 1 . . . . . . . . . . . . . . . . . Rammed 6 | . . . . . . . . . . . . . . . . . 1 . . . . . . 2 2 . 1 Targets Rammed 8 | 1 . . . . . . . . . . . . . . . . 1 . . . . . 1 2 2 . 1 Kicked 1 | 1 . . . . . . . . . . . . . . . . . . . . . . . . . . . Crushed 1 | . . . . . . . . . . . . . . . . . . . . . . . 1 . . . . Highest Temperature 585 | . . . 19 45 21 96 150 197 46 199 180 247 141 96 252 178 246 271 159 125 285 251 144 287 232 194 585 Average Temperature 70 | . . . 3 12 10 28 44 113 24 86 60 108 36 32 44 65 80 44 64 33 39 56 29 70 61 44 122 Received Heat Transfer 3801 | . 18 99 198 198 45 54 42 480 78 324 6 216 141 132 370 105 102 268 69 162 227 90 31 40 119 70 117 Effects 17 | . . . . . . . . . . . . 2 . . . . . . . . . . . . . . 15 Shutdowns 6 | . . . . . . . . . . . . . . . . . . . . . . . . . . . 6 Interference 5 | . . . . . . . . . . . . 2 . . . . . . . . . . . . . . 3 Short Circuit 2 | . . . . . . . . . . . . . . . . . . . . . . . . . . . 2 Damage (minor) 1 | . . . . . . . . . . . . . . . . . . . . . . . . . . . 1 Damage (major) 2 | . . . . . . . . . . . . . . . . . . . . . . . . . . . 2 Damage (core) 1 | . . . . . . . . . . . . . . . . . . . . . . . . . . . 1 Siege Activations 7 | . . . . . . . . . . . . . . . . . . 1 . . . . . . 2 3 1 Total Turns 110 | . . . . . . . . . . . . . . . . . . 31 . . . . . . 24 51 4 Longest Duration 31 | . . . . . . . . . . . . . . . . . . 31 . . . . . . 21 21 4 Robots Corrupted . | . . . . . . . . . . . . . . . . . . . . . . . . . . . . Combat Hostiles . | . . . . . . . . . . . . . . . . . . . . . . . . . . . . Parts Fried 4 | . 1 . . . . . . . . . . . . . 1 . . . . . . . 2 . . . . Impact Corruptions 8 | . . 3 2 . . . . . . . . . . . . . . . . . 1 . 2 . . . . Robots Melted . | . . . . . . . . . . . . . . . . . . . . . . . . . . . . Combat Hostiles . | . . . . . . . . . . . . . . . . . . . . . . . . . . . . Parts Melted 10 | . . . . . . . . . . . . . 2 . . . . . . . 4 . . 3 1 . . Heat Transferred 1898 | . 125 . . . . . . 150 . 100 . . 866 407 250 . . . . . . . . . . . . Parts Sabotaged . | . . . . . . . . . . . . . . . . . . . . . . . . . . . . Parts Stolen . | . . . . . . . . . . . . . . . . . . . . . . . . . . . . Parts Stripped . | . . . . . . . . . . . . . . . . . . . . . . . . . . . . Power Chain Reactions 5 | . . . . . . . . 2 . 2 . . . . 1 . . . . . . . . . . . . Missiles Intercepted 1 | . . . . . . . . . . . . . . . . . . . . . . . . . . . 1 Alert | -11 -10 -9 -8 -8 -8 -8 -7 -7 -6 -6 -6 -6 -5 -5 -4 -4 -4 -4 -3 -3 -3 -3 -2 -2 -1 -1 -1 ------- Run | Scr Mat Mat Mat Gar Mat Gar Fac Gar Fac Gar Fac Gar Fac Gar Fac Gar Fac Gar Res Gar Res Gar Res Gar Acc Gar Acc Peak Influence 773 | . 203 291 392 773 419 398 243 372 286 493 200 478 239 709 332 579 416 603 295 311 162 504 410 423 324 187 195 Initial 276 | . . 3 15 126 276 48 154 6 144 12 192 22 186 59 276 63 225 62 254 24 131 27 212 92 191 11 84 Average 202 | . 63 95 185 473 187 253 91 225 156 284 108 310 106 529 108 363 84 414 103 173 58 360 167 282 86 86 55 Maximum Alert Level 3 | . 1 1 1 3 2 1 1 1 1 2 1 2 1 3 1 2 2 2 1 1 . 2 2 2 1 . . Low Security (%) 58 | 100 95 86 61 16 63 29 84 41 72 39 78 31 83 3 77 15 83 3 71 59 100 17 65 24 82 100 100 Level 1 24 | . 4 13 38 20 34 70 15 58 27 14 21 31 16 21 22 33 16 40 28 40 . 32 33 66 17 . . Level 2 14 | . . . . 44 1 . . . . 45 . 36 . 44 . 50 . 55 . . . 49 . 9 . . . Level 3 2 | . . . . 18 . . . . . . . . . 30 . . . . . . . . . . . . . Level 4 . | . . . . . . . . . . . . . . . . . . . . . . . . . . . . Level 5 . | . . . . . . . . . . . . . . . . . . . . . . . . . . . . High Security . | . . . . . . . . . . . . . . . . . . . . . . . . . . . . Max Security . | . . . . . . . . . . . . . . . . . . . . . . . . . . . . Squads Dispatched 96 | . . 3 5 . 1 . 2 . 3 . 2 . 6 . 13 . 7 . 6 . 15 . 5 . 7 . 21 Investigation 9 | . . . 1 . . . 1 . . . . . . . 1 . 1 . 1 . 1 . . . 1 . 2 Extermination 38 | . . . . . . . 1 . . . 1 . 1 . 7 . 6 . 2 . 5 . 3 . 3 . 9 Reinforcement 28 | . . 3 2 . . . . . . . 1 . 4 . 5 . . . 2 . 5 . 1 . 1 . 4 Assault 1 | . . . . . . . . . . . . . . . . . . . . . . . . . 1 . . Garrison 20 | . . . 2 . 1 . . . 3 . . . 1 . . . . . 1 . 4 . 1 . 1 . 6 Intercept . | . . . . . . . . . . . . . . . . . . . . . . . . . . . . Construction Impeded 15 | . . . . . . . . . . . . . 2 . 4 . . . 1 . 2 . 1 . 1 . 4 Haulers Reinforced 2 | . . . . . . . . . . . 1 . 1 . . . . . . . . . . . . . . Cargo Convoy Interrupts . | . . . . . . . . . . . . . . . . . . . . . . . . . . . . Alert ID Control Effect 191 | . . . . . . . . . . . 1 2 8 19 17 5 18 5 5 7 22 2 14 5 33 3 25 Stealth | -11 -10 -9 -8 -8 -8 -8 -7 -7 -6 -6 -6 -6 -5 -5 -4 -4 -4 -4 -3 -3 -3 -3 -2 -2 -1 -1 -1 --------- Run | Scr Mat Mat Mat Gar Mat Gar Fac Gar Fac Gar Fac Gar Fac Gar Fac Gar Fac Gar Res Gar Res Gar Res Gar Acc Gar Acc Distress Signals 13 | . . 1 . . . . 1 . . . . . 2 . 2 . 2 . . . 1 . 2 . 1 . 1 Communications Jammed . | . . . . . . . . . . . . . . . . . . . . . . . . . . . . Distress Signals . | . . . . . . . . . . . . . . . . . . . . . . . . . . . . Times Spotted 802 | . 12 32 23 22 8 25 10 18 7 34 4 22 29 42 65 18 34 26 26 38 66 28 32 26 52 29 74 Peak Tracking Total 11 | . 4 7 5 11 3 3 3 6 3 10 2 5 4 6 5 3 3 6 4 8 7 8 7 5 7 5 6 Tactical Retreats 35 | . 1 1 1 2 1 3 . 1 . 4 . 2 1 5 . . 1 . 2 4 . 3 . 2 . . 1 Traps | -11 -10 -9 -8 -8 -8 -8 -7 -7 -6 -6 -6 -6 -5 -5 -4 -4 -4 -4 -3 -3 -3 -3 -2 -2 -1 -1 -1 ------- Run | Scr Mat Mat Mat Gar Mat Gar Fac Gar Fac Gar Fac Gar Fac Gar Fac Gar Fac Gar Res Gar Res Gar Res Gar Acc Gar Acc Traps Triggered 30 | . 3 2 1 . . 2 1 2 . 1 . . . 4 1 . . 1 . 2 . 4 . 2 1 1 2 Indirectly 2 | . . . . . . . . 2 . . . . . . . . . . . . . . . . . . . Trap Hack Attempts 45 | . . . . . . 1 . 26 . 9 . 9 . . . . . . . . . . . . . . . Triggered . | . . . . . . . . . . . . . . . . . . . . . . . . . . . . Disarmed . | . . . . . . . . . . . . . . . . . . . . . . . . . . . . Reprogrammed 18 | . . . . . . 1 . 1 . 5 4 1 . . 6 . . . . . . . . . . . . Reused 1 | . . . . . . . . . . . . . . . 1 . . . . . . . . . . . . Traps Extracted . | . . . . . . . . . . . . . . . . . . . . . . . . . . . . Installed . | . . . . . . . . . . . . . . . . . . . . . . . . . . . . Triggered 1 | . . . . . . . . . . . . . . . 1 . . . . . . . . . . . . Machines | -11 -10 -9 -8 -8 -8 -8 -7 -7 -6 -6 -6 -6 -5 -5 -4 -4 -4 -4 -3 -3 -3 -3 -2 -2 -1 -1 -1 ---------- Run | Scr Mat Mat Mat Gar Mat Gar Fac Gar Fac Gar Fac Gar Fac Gar Fac Gar Fac Gar Res Gar Res Gar Res Gar Acc Gar Acc Machines Disabled 100 | . . . . 2 1 3 3 3 7 5 3 7 7 8 3 8 5 6 . 4 1 6 5 5 . 3 5 Max in Single Turn 5 | . . . . 1 1 1 2 1 3 2 1 2 5 2 1 2 1 2 . 1 1 2 1 1 . 1 1 Garrison Access 1 | . . . . . . . . . . . . . . . . . . . . . . . . . 1 . . Garrison Relay 40 | . . . . 2 . 3 . 2 . 3 . 2 . 4 . 4 . 4 . 4 . 4 . 4 . 4 . Phase Generator 4 | . . . . . . . . . . 1 . 1 . 1 . . . 1 . . . . . . . . . Energy Cycler 2 | . . . . . . . . . . . . . . . . . . . . . . . . . . . 2 Machines Sabotaged . | . . . . . . . . . . . . . . . . . . . . . . . . . . . . Garrisons Compromised . | . . . . . . . . . . . . . . . . . . . . . . . . . . . . Overloaded Fab Kills . | . . . . . . . . . . . . . . . . . . . . . . . . . . . . Fab Network Shutdowns 2 | . . . . . . . . . . . . . . . 1 . 1 . . . . . . . . . . Hacking | -11 -10 -9 -8 -8 -8 -8 -7 -7 -6 -6 -6 -6 -5 -5 -4 -4 -4 -4 -3 -3 -3 -3 -2 -2 -1 -1 -1 --------- Run | Scr Mat Mat Mat Gar Mat Gar Fac Gar Fac Gar Fac Gar Fac Gar Fac Gar Fac Gar Res Gar Res Gar Res Gar Acc Gar Acc Machines Accessed 74 | . 6 10 4 . 3 . 2 . 2 . 7 . 2 . 13 . 12 . 1 . 6 . 3 . 3 . . Terminals 50 | . 6 9 2 . 2 . 1 . 1 . 4 . 1 . 8 . 8 . . . 5 . 2 . 1 . . Fabricators 4 | . . . . . . . . . . . 1 . . . 2 . 1 . . . . . . . . . . Repair Stations 3 | . . . . . . . . . . . 1 . . . 2 . . . . . . . . . . . . Recycling Units . | . . . . . . . . . . . . . . . . . . . . . . . . . . . . Scanalyzers 4 | . . 1 1 . . . . . . . . . . . . . 2 . . . . . . . . . . Garrison Access 13 | . . . 1 . 1 . 1 . 1 . 1 . 1 . 1 . 1 . 1 . 1 . 1 . 2 . . Total Hacks 181 | . 26 33 9 . 6 . 3 . 4 . 13 . 5 . 34 . 23 . 1 . 13 . 5 . 6 . . Successful 109 | . 17 19 7 . 5 . 3 . 4 . 8 . 4 . 16 . 10 . 1 . 8 . 4 . 3 . . Failed 72 | . 9 14 2 . 1 . . . . . 5 . 1 . 18 . 13 . . . 5 . 1 . 3 . . Catastrophic 14 | . 1 1 . . . . . . . . 1 . . . 4 . 5 . . . 1 . . . 1 . . Database Lockouts . | . . . . . . . . . . . . . . . . . . . . . . . . . . . . Manual 97 | . 18 26 . . 2 . 1 . 1 . 2 . 4 . 22 . 10 . . . 6 . 1 . 4 . . Terminals 140 | . 26 31 5 . 5 . 2 . 3 . 6 . 4 . 26 . 14 . . . 12 . 4 . 2 . . Fabricators 9 | . . . . . . . . . . . 3 . . . 3 . 3 . . . . . . . . . . Repair Stations 5 | . . . . . . . . . . . 2 . . . 3 . . . . . . . . . . . . Recycling Units . | . . . . . . . . . . . . . . . . . . . . . . . . . . . . Scanalyzers 10 | . . 2 3 . . . . . . . . . . . . . 5 . . . . . . . . . . Garrison Access 17 | . . . 1 . 1 . 1 . 1 . 2 . 1 . 2 . 1 . 1 . 1 . 1 . 4 . . Terminal Hacks 64 | . 16 16 3 . 3 . 1 . 2 . 3 . 2 . 8 . 2 . . . 6 . 2 . . . . Record 4 | . . . . . . . . . . . . . . . 2 . 1 . . . 1 . . . . . . Part Schematic 1 | . 1 . . . . . . . . . . . . . . . . . . . . . . . . . . Robot Analysis 2 | . 1 . . . . . . . . . . . . . . . . . . . . . 1 . . . . Prototype ID Bank 23 | . 10 11 1 . 1 . . . . . . . . . . . . . . . . . . . . . . Emergency Access Points 1 | . . . . . . . . . . . . . . . . . . . . . 1 . . . . . . Machine Index 1 | . . . . . . . 1 . . . . . . . . . . . . . . . . . . . . Terminal Index 1 | . . . . . . . . . . . . . . . 1 . . . . . . . . . . . . Fabricator Index 1 | . . . . . . . . . . . . . . . 1 . . . . . . . . . . . . Garrison Index 3 | . . 1 . . . . . . . . . . . . 1 . . . . . 1 . . . . . . Alert Level 1 | . . . 1 . . . . . . . . . . . . . . . . . . . . . . . . Unreport Threat 3 | . . . . . 2 . . . . . . . 1 . . . . . . . . . . . . . . Locate Traps 10 | . 3 1 . . . . . . . . 2 . 1 . . . 1 . . . 1 . 1 . . . . Reprogram Traps 2 | . . . . . . . . . . . 1 . . . 1 . . . . . . . . . . . . Dispatch Records 2 | . . . . . . . . . 1 . . . . . . . . . . . 1 . . . . . . Security Status 1 | . . . 1 . . . . . . . . . . . . . . . . . . . . . . . . Recall Extermination 1 | . . . . . . . . . . . . . . . 1 . . . . . . . . . . . . Recall Reinforcements 3 | . . 2 . . . . . . . . . . . . . . . . . . 1 . . . . . . Hauler Manifests 2 | . . 1 . . . . . . 1 . . . . . . . . . . . . . . . . . . Registered Components 1 | . . . . . . . . . . . . . . . 1 . . . . . . . . . . . . Registered Prototypes 1 | . 1 . . . . . . . . . . . . . . . . . . . . . . . . . . Fabricator Hacks 5 | . . . . . . . . . . . 1 . . . 2 . 2 . . . . . . . . . . Load Schematic 1 | . . . . . . . . . . . . . . . . . 1 . . . . . . . . . . Build 4 | . . . . . . . . . . . 1 . . . 2 . 1 . . . . . . . . . . Repair Station Hacks 3 | . . . . . . . . . . . 2 . . . 1 . . . . . . . . . . . . Scan Component 2 | . . . . . . . . . . . 1 . . . 1 . . . . . . . . . . . . Repair 1 | . . . . . . . . . . . 1 . . . . . . . . . . . . . . . . Recycling Unit Hacks . | . . . . . . . . . . . . . . . . . . . . . . . . . . . . Scanalyzer 9 | . . 2 3 . . . . . . . . . . . . . 4 . . . . . . . . . . Insert Component 4 | . . 1 1 . . . . . . . . . . . . . 2 . . . . . . . . . . Analyze 5 | . . 1 2 . . . . . . . . . . . . . 2 . . . . . . . . . . Garrison Access Hacks 15 | . . . 1 . 1 . 1 . 1 . 2 . 1 . 2 . 1 . 1 . 1 . 1 . 2 . . Unlock Access 13 | . . . 1 . 1 . 1 . 1 . 1 . 1 . 1 . 1 . 1 . 1 . 1 . 2 . . Coupler Status 2 | . . . . . . . . . . . 1 . . . 1 . . . . . . . . . . . . Unauthorized Hacks 13 | . 1 1 . . 1 . 1 . 1 . . . 1 . 3 . 1 . . . 1 . 1 . 1 . . Terminals 13 | . 1 1 . . 1 . 1 . 1 . . . 1 . 3 . 1 . . . 1 . 1 . 1 . . Botnet 11 | . 1 1 . . 1 . . . 1 . . . 1 . 2 . 1 . . . 1 . 1 . 1 . . Operators 2 | . . . . . . . 1 . . . . . . . 1 . . . . . . . . . . . . Fabricators . | . . . . . . . . . . . . . . . . . . . . . . . . . . . . Repair Stations . | . . . . . . . . . . . . . . . . . . . . . . . . . . . . Recycling Units . | . . . . . . . . . . . . . . . . . . . . . . . . . . . . Scanalyzers . | . . . . . . . . . . . . . . . . . . . . . . . . . . . . Garrison Access . | . . . . . . . . . . . . . . . . . . . . . . . . . . . . Data Cores Recovered 6 | . . 1 . . 1 . . . . . . . . . . . 2 . . . 2 . . . . . . Used . | . . . . . . . . . . . . . . . . . . . . . . . . . . . . Hacking Detections 68 | . 6 10 4 . 2 . 2 . 1 . 7 . 1 . 12 . 11 . 1 . 5 . 3 . 3 . . Full Trace Events 4 | . . 1 1 . . . . . . . . . . . 1 . 1 . . . . . . . . . . Feedback Events . | . . . . . . . . . . . . . . . . . . . . . . . . . . . . Feedback Blocked . | . . . . . . . . . . . . . . . . . . . . . . . . . . . . Robot Schematics Acquired . | . . . . . . . . . . . . . . . . . . . . . . . . . . . . Robots Built . | . . . . . . . . . . . . . . . . . . . . . . . . . . . . Matter . | . . . . . . . . . . . . . . . . . . . . . . . . . . . . Time . | . . . . . . . . . . . . . . . . . . . . . . . . . . . . Total Robot Build Rating . | . . . . . . . . . . . . . . . . . . . . . . . . . . . . Part Schematics Acquired 5 | . 1 1 1 . . . . . . . . . . . . . 2 . . . . . . . . . . Parts Built 6 | . . . . . . . . . . . 2 . . . 2 . 2 . . . . . . . . . . Matter 768 | . . . . . . . . . . . 256 . . . 278 . 234 . . . . . . . . . . Time 320 | . . . . . . . . . . . 64 . . . 139 . 117 . . . . . . . . . . Total Part Build Rating 48 | . . . . . . . . . . . 16 . . . 18 . 14 . . . . . . . . . . Parts Repaired 1 | . . . . . . . . . . . 1 . . . . . . . . . . . . . . . . Time 38 | . . . . . . . . . . . 38 . . . . . . . . . . . . . . . . Parts Recycled . | . . . . . . . . . . . . . . . . . . . . . . . . . . . . Recycled Matter . | . . . . . . . . . . . . . . . . . . . . . . . . . . . . Retrieved Matter . | . . . . . . . . . . . . . . . . . . . . . . . . . . . . Retrieved Components . | . . . . . . . . . . . . . . . . . . . . . . . . . . . . Parts Scanalyzed 4 | . . 1 1 . . . . . . . . . . . . . 2 . . . . . . . . . . Part Schematics Acquired 4 | . . 1 1 . . . . . . . . . . . . . 2 . . . . . . . . . . Parts Damaged 1 | . . . . . . . . . . . . . . . . . 1 . . . . . . . . . . Bothacking | -11 -10 -9 -8 -8 -8 -8 -7 -7 -6 -6 -6 -6 -5 -5 -4 -4 -4 -4 -3 -3 -3 -3 -2 -2 -1 -1 -1 ------------ Run | Scr Mat Mat Mat Gar Mat Gar Fac Gar Fac Gar Fac Gar Fac Gar Fac Gar Fac Gar Res Gar Res Gar Res Gar Acc Gar Acc Used RIF Installer 12 | . . . . 1 . 1 . 1 . 1 . 1 . 1 . 1 . 1 . 1 . 1 . 1 . 1 . Coupler Efficiency 1 | . . . . . . . . 1 . . . . . . . . . . . . . . . . . . . Command Fork 1 | . . . . . . . . . . . . . . . . . . . . . . . . . . 1 . Threat Obfuscator 3 | . . . . . . 1 . . . . . . . . . . . . . 1 . 1 . . . . . Robot Detection 1 | . . . . . . . . . . . . 1 . . . . . . . . . . . . . . . Watcher Feeds 1 | . . . . . . . . . . . . . . 1 . . . . . . . . . . . . . Alert ID Control 1 | . . . . . . . . . . 1 . . . . . . . . . . . . . . . . . Structural Interface 1 | . . . . . . . . . . . . . . . . . . . . . . . . 1 . . . Autooverride 1 | . . . . . . . . . . . . . . . . 1 . . . . . . . . . . . Crosswire 1 | . . . . . . . . . . . . . . . . . . 1 . . . . . . . . . Robots Hacked 236 | . . . . . 2 5 1 1 . 7 2 7 15 10 16 5 11 6 13 19 17 7 11 12 24 16 29 Non-combat 28 | . . . . . 2 . . . . . 2 . 5 . 3 . 3 . 1 . 2 . 2 . 6 . 2 Combat 208 | . . . . . . 5 1 1 . 7 . 7 10 10 13 5 8 6 12 19 15 7 9 12 18 16 27 Autooverrided 37 | . . . . . . . . . . . . . . . . . 2 2 5 3 5 1 3 . 4 4 8 Robot Hacks Applied 221 | . . . . . 5 5 1 1 . 7 3 8 22 11 17 5 9 4 9 17 14 6 8 12 24 12 21 parse_system 10 | . . . . . 2 . . . . . 1 . 2 2 1 . . . 1 . . . . . 1 . . no_distress 1 | . . . . . 1 . . . . . . . . . . . . . . . . . . . . . . generate_echo 1 | . . . . . . . . . . . 1 . . . . . . . . . . . . . . . . find_chute 4 | . . . . . . . . . . . . . 4 . . . . . . . . . . . . . . ignore_repairs 6 | . . . . . . . . . . . . . 5 . . . . . . . . . . . . . 1 drop_inventory 13 | . . . . . . . . . . . . . . . 2 . 3 . 1 . 2 . 2 . 3 . . find_recycling 3 | . . . . . 1 . . . . . 1 . . . 1 . . . . . . . . . . . . ignore_parts 8 | . . . . . 1 . . . . . . . 1 . . . . . . . . . . . 5 . 1 focus_fire 6 | . . . . . . . . . . . . . . 2 2 . . . . . 2 . . . . . . scatter_targeting 7 | . . . . . . . . . . . . . . 1 1 . 1 1 . 1 1 . . . . . 1 mark_system 1 | . . . . . . . . . . . . . 1 . . . . . . . . . . . . . . disrupt_area 1 | . . . . . . . . . . . . . . . . . . . . 1 . . . . . . . spike_heat 1 | . . . . . . . . . . . . . . . . . . . . . . . . 1 . . . overload_power 1 | . . . . . . . . . . . . . . 1 . . . . . . . . . . . . . disable_weapons 2 | . . . . . . . . . . . . . . . . . . . . . . . . 1 1 . . go_dormant 1 | . . . . . . . . . . . . . . . . 1 . . . . . . . . . . . overwrite_iff 18 | . . . . . . . 1 . . . . 4 . 1 . . . . . 1 . 1 1 1 2 3 3 streamctrl_high 1 | . . . . . . . . . . . . . . . . . . . . . . . . 1 . . . formatsys_high 136 | . . . . . . 5 . 1 . 7 . 4 9 4 10 4 5 3 7 14 9 5 5 8 12 9 15 Relay Couplers Released 163 | . . . . 8 . 11 . 7 . 11 . 7 4 16 . 15 . 15 . 17 . 16 . 13 4 16 3 Machine Destruction 152 | . . . . 8 . 11 . 7 . 11 . 7 . 16 . 15 . 15 . 17 . 16 . 13 . 16 . Programmers 11 | . . . . . . . . . . . . . 4 . . . . . . . . . . . 4 . 3 Attached 69 | . . . . . . 2 . 3 . 5 1 2 2 5 2 5 2 3 2 7 3 5 2 3 2 9 4 Crosswired 39 | . . . . . . . . . . . . . . . . . . 8 . 5 . 9 . 8 2 6 1 Robots Rewired 18 | . . . . . . . . . . 7 . . 2 9 . . . . . . . . . . . . . Allies Hacked 19 | . . . . . . . . . . . . . 3 . . . 1 1 1 . 4 . 2 . 1 . 6 Hacks Repelled . | . . . . . . . . . . . . . . . . . . . . . . . . . . . . Allies | -11 -10 -9 -8 -8 -8 -8 -7 -7 -6 -6 -6 -6 -5 -5 -4 -4 -4 -4 -3 -3 -3 -3 -2 -2 -1 -1 -1 -------- Run | Scr Mat Mat Mat Gar Mat Gar Fac Gar Fac Gar Fac Gar Fac Gar Fac Gar Fac Gar Res Gar Res Gar Res Gar Acc Gar Acc Total Allies 212 | . . . . . . 5 1 1 . 14 . 7 11 14 10 4 7 5 12 17 12 7 9 10 17 19 30 Largest Group 16 | . . . . . . 3 1 1 . 7 2 3 6 7 6 3 5 2 5 13 13 3 5 7 8 8 16 Highest-Rated Group 986 | . . . . . . 61 16 21 . 234 64 96 198 181 275 147 268 105 270 656 656 141 308 411 482 494 986 Highest-Rated Ally 69 | . . . . . . 29 16 21 . 38 32 47 49 49 58 49 58 56 64 64 64 64 69 69 64 69 69 Total Orders 179 | . . . . . . . . . . 4 . . 7 25 26 14 20 9 2 18 18 12 2 12 . 8 2 STAY 94 | . . . . . . . . . . 2 . . 4 13 13 8 11 5 1 9 10 6 1 6 . 5 . FOLLOW 83 | . . . . . . . . . . 2 . . 3 12 13 6 9 4 1 9 8 6 1 6 . 3 . EXPLORE 2 | . . . . . . . . . . . . . . . . . . . . . . . . . . . 2 Ally Attacks 1309 | . . . . . . 32 5 3 . 37 14 12 45 88 108 25 78 25 43 56 180 24 75 33 175 40 211 Total Damage 41831 | . . . . . . 433 45 89 . 712 455 268 1143 2586 3571 799 2745 796 1133 1589 5788 716 3078 1104 5925 1570 7286 Kills 210 | . . . . . . 6 . . . 3 1 2 8 21 18 6 19 5 5 7 25 2 14 6 33 3 26 Allies Corrupted 14 | . . . . . . . . . . . . 1 2 . 1 . . . . . 1 . . . 1 . 8 Allies Melted 1 | . . . . . . . . . . . . . . . . . . . . . . . 1 . . . . Intel | -11 -10 -9 -8 -8 -8 -8 -7 -7 -6 -6 -6 -6 -5 -5 -4 -4 -4 -4 -3 -3 -3 -3 -2 -2 -1 -1 -1 ------- Run | Scr Mat Mat Mat Gar Mat Gar Fac Gar Fac Gar Fac Gar Fac Gar Fac Gar Fac Gar Res Gar Res Gar Res Gar Acc Gar Acc Robot Analysis Total 2 | . 1 . . . . . . . . . . . . . . . . . . . . . 1 . . . . Derelict Logs Recovered . | . . . . . . . . . . . . . . . . . . . . . . . . . . . . Drone Launches 3 | . . . . . . . . . . . . . . . . . . . . . . . . . . . 3 Drone Recoveries 1 | . . . . . . . . . . . . . . . . . . . . . . . . . . . 1 Exploration | -11 -10 -9 -8 -8 -8 -8 -7 -7 -6 -6 -6 -6 -5 -5 -4 -4 -4 -4 -3 -3 -3 -3 -2 -2 -1 -1 -1 ------------- Run | Scr Mat Mat Mat Gar Mat Gar Fac Gar Fac Gar Fac Gar Fac Gar Fac Gar Fac Gar Res Gar Res Gar Res Gar Acc Gar Acc Turns Passed 43194 | 55 940 1816 701 560 502 1357 933 976 488 1627 1145 1248 1456 2716 3508 1651 2493 2465 1420 1962 2619 2293 1174 1637 1299 1616 2537 Spaces Moved 22319 | 26 663 728 335 278 260 719 511 496 256 827 601 665 702 1413 1807 748 1272 1144 683 1130 1380 1144 657 899 707 866 1402 Core . | . . . . . . . . . . . . . . . . . . . . . . . . . . . . Treads 21772 | . 142 728 335 278 260 719 511 496 256 827 601 665 702 1413 1807 748 1272 1144 683 1130 1380 1144 657 899 707 866 1402 Legs 547 | 26 521 . . . . . . . . . . . . . . . . . . . . . . . . . . Wheels . | . . . . . . . . . . . . . . . . . . . . . . . . . . . . Hover . | . . . . . . . . . . . . . . . . . . . . . . . . . . . . Flight . | . . . . . . . . . . . . . . . . . . . . . . . . . . . . Fastest Speed 120 | 120 120 160 160 160 160 166 166 166 163 160 160 165 170 170 170 170 170 180 145 145 153 166 153 153 145 150 145 Average Speed 165 | 196 128 214 160 160 162 166 166 166 163 164 164 165 170 170 170 173 172 186 164 148 161 182 153 153 149 150 150 Slowest Speed 290 | 200 160 260 160 160 166 166 166 166 166 260 165 165 170 170 175 175 180 290 180 153 166 266 161 153 156 150 252 Overloaded Moves . | . . . . . . . . . . . . . . . . . . . . . . . . . . . . Propulsion Burnouts . | . . . . . . . . . . . . . . . . . . . . . . . . . . . . Robots Hopped 1 | . . . . . . . . . . . . . 1 . . . . . . . . . . . . . . Cave-ins Triggered . | . . . . . . . . . . . . . . . . . . . . . . . . . . . . Exploration Rate (%) 55 | 4 88 79 24 46 23 77 14 72 5 94 16 85 19 99 50 84 35 99 26 87 53 91 25 93 21 98 43 Regions Visited 27 Branch Regions . Pre-discovered Areas . | . . . . . . . . . . . . . . . . . . . . . . . . . . . . Known Exits Taken 15 | 1 1 1 1 . 1 . 1 . 1 . 1 . 1 . 1 . 1 . 1 . 1 . 1 . 1 . . Unknown Exits Taken . | . . . . . . . . . . . . . . . . . . . . . . . . . . . . Scrap Searched . | . . . . . . . . . . . . . . . . . . . . . . . . . . . . Spaces Dug 49 | . . 1 . . . 2 . . 1 . 1 8 8 . 7 . 1 1 1 3 3 1 . 2 1 . 8 Terrain Destroyed 1493 | . . 1 . 19 35 2 6 27 30 75 8 161 93 188 46 55 10 113 7 68 59 68 88 83 51 97 103 Melee 13 | . . 1 . . . . . . 1 . . . 4 . 5 . 1 . . . 1 . . . . . . Projectile 256 | . . . . . . 2 4 1 1 3 8 15 21 5 32 2 9 14 7 11 33 7 10 5 7 12 47 AOE 1224 | . . . . 19 35 . 2 26 28 72 . 146 68 183 9 53 . 99 . 57 25 61 78 78 44 85 56 Terrain Rammed . | . . . . . . . . . . . . . . . . . . . . . . . . . . . . Walls Destroyed . | . . . . . . . . . . . . . . . . . . . . . . . . . . . . Machines Disabled . | . . . . . . . . . . . . . . . . . . . . . . . . . . . . Actions | -11 -10 -9 -8 -8 -8 -8 -7 -7 -6 -6 -6 -6 -5 -5 -4 -4 -4 -4 -3 -3 -3 -3 -2 -2 -1 -1 -1 --------- Run | Scr Mat Mat Mat Gar Mat Gar Fac Gar Fac Gar Fac Gar Fac Gar Fac Gar Fac Gar Res Gar Res Gar Res Gar Acc Gar Acc Total 26626 | 28 714 901 427 327 323 829 579 579 321 987 739 740 882 1652 2080 1072 1464 1340 936 1322 1626 1274 775 1101 858 1066 1684 Wait 1960 | . 4 83 24 4 28 52 30 12 45 42 97 14 80 113 141 251 85 80 169 87 104 42 47 113 33 57 123 Move 22276 | 25 662 727 334 276 259 717 510 494 255 825 600 663 699 1410 1806 746 1271 1142 682 1128 1379 1142 656 897 706 864 1401 Hop 1 | . . . . . . . . . . . . . 1 . . . . . . . . . . . . . . Pick Up 215 | . 11 16 10 3 5 5 10 3 4 12 6 1 9 15 8 11 6 8 6 8 7 6 6 5 4 22 8 Fast Attach 103 | . 2 . . . . . . . . 2 3 . 2 4 3 1 6 6 16 5 13 1 3 4 11 6 15 Attach 77 | . 1 2 2 . 1 . 2 . 2 4 . . 3 1 3 4 2 9 1 1 4 5 4 1 4 11 10 Detach 43 | . 1 . . . . . . . . . . . 1 3 . 5 1 5 . 1 3 4 3 3 1 3 9 Swap 258 | 2 6 6 6 9 7 7 6 9 5 16 5 9 12 11 12 7 17 9 9 12 11 13 8 14 10 12 8 Drop 308 | . 7 18 13 5 9 8 10 3 6 12 12 2 11 21 14 11 17 9 21 10 20 8 8 6 13 16 18 Fire 1219 | . 20 47 37 28 8 31 10 31 3 45 10 40 60 69 87 36 56 70 31 58 84 46 34 55 69 67 87 Melee 59 | . . 2 1 2 6 7 1 1 1 17 6 1 4 . 5 . 1 . . 2 1 . . 1 . . . Ram . | . . . . . . . . . . . . . . . . . . . . . . . . . . . . Kick 1 | 1 . . . . . . . . . . . . . . . . . . . . . . . . . . . Crush 7 | . . . . . . . . . . . . . . . . . 1 . . . . . 1 2 2 . 1 Escape Stasis 7 | . . . . . . . . . . . . . . . . . . . . . . 6 . . . 1 . Rewire 47 | . . . . . . 1 . . . 3 . 1 . 5 1 . 1 2 1 10 . 1 5 . 5 7 4 Trap 45 | . . . . . . 1 . 26 . 9 . 9 . . . . . . . . . . . . . . . Miscellaneous . | . . . . . . . . . . . . . . . . . . . . . . . . . . . . Route ------- -11/Scrapyard -10/Materials (discovered 3 exits: *Mat x2 / *Min) -9/Materials (discovered 4 exits: *Mat x3 / *Min) -8/Materials -8/Garrison -8/Materials (discovered 2 exits: *Sto / Gar) -8/Garrison (discovered 3 exits: *Fac x3) -7/Factory (discovered 2 exits: *Fac / Gar) -7/Garrison (discovered 2 exits: *Fac x2) -6/Factory -6/Garrison (discovered 3 exits: *Fac x3) -6/Factory -6/Garrison (discovered 3 exits: *Fac x3) -5/Factory -5/Garrison (discovered 3 exits: *Fac x3) -4/Factory (discovered 3 exits: *Res x2 / Gar) -4/Garrison (discovered 3 exits: *Fac x3) -4/Factory (discovered 2 exits: *Res / Gar) -4/Garrison (discovered 3 exits: *Res x3) -3/Research -3/Garrison (discovered 3 exits: *Res x3) -3/Research (discovered 4 exits: *Res / *Arm / *Qua / Gar) -3/Garrison (discovered 3 exits: *Res x3) -2/Research (discovered 3 exits: *Acc / *Tes / Gar) -2/Garrison (discovered 2 exits: *Acc x2) -1/Access -1/Garrison (discovered 3 exits: *Acc x3) -1/Access To Epsilon Eridani History --------- Turn | Location | Event 3 | -11/Scrapyard | Identified exit to Materials 3 | -11/Scrapyard | Discovered exit to Materials (range 3) 56 | -11/Scrapyard | Entered Materials 56 | -10/Materials | Evolved 1 slot: Utility x1 179 | -10/Materials | Identified exit to Mines 179 | -10/Materials | Discovered exit to Mines (range 12) 313 | -10/Materials | Identified exit to Materials 313 | -10/Materials | Discovered exit to Materials (range 6) 314 | -10/Materials | Build established: Hacker-Mutant 491 | -10/Materials | Discovered exit to Materials (range 5) 996 | -10/Materials | Entered another Materials area 996 | -9/Materials | Evolved 2 slots: Utility x1, Weapon x1 1358 | -9/Materials | Identified exit to Materials 1358 | -9/Materials | Discovered exit to Materials (range 5) 1537 | -9/Materials | Identified exit to Mines 1537 | -9/Materials | Discovered exit to Mines (range 15) 1866 | -9/Materials | Discovered exit to Materials (range 3) 2268 | -9/Materials | Discovered exit to Materials (range 13) 2812 | -9/Materials | Entered another Materials area 2812 | -8/Materials | Evolved 2 slots: Propulsion x1, Weapon x1 3190 | -8/Materials | Garrison activated, responded to threat 3424 | -8/Materials | Build established: Hacker-Gunner 3469 | -8/Materials | Garrison activated, responded to threat 3498 | -8/Materials | Identified exit to Garrison 3513 | -8/Materials | Entered Garrison 3523 | -8/Garrison | Installed Relay Interface Framework 3564 | -8/Garrison | Triggered checkpoint 3608 | -8/Garrison | Garrison Relay disabled 3688 | -8/Garrison | Triggered checkpoint 3722 | -8/Garrison | Destroyed 7 combat bots 3783 | -8/Garrison | Destroyed 7 combat bots 3909 | -8/Garrison | Identified exit to Materials 3909 | -8/Garrison | Discovered exit to Materials (range 10) 3954 | -8/Garrison | Triggered checkpoint 4001 | -8/Garrison | Garrison Relay disabled 4073 | -8/Garrison | Entered Materials 4463 | -8/Materials | Identified exit to Storage 4463 | -8/Materials | Discovered exit to Storage (range 10) 4493 | -8/Materials | Garrison activated, responded to threat 4574 | -8/Materials | Identified exit to Garrison 4575 | -8/Materials | Entered Garrison 4584 | -8/Garrison | Expanded RIF knowledge: Threat Obfuscation 4640 | -8/Garrison | Triggered checkpoint 4673 | -8/Garrison | Garrison Relay disabled 4954 | -8/Garrison | Triggered checkpoint 5017 | -8/Garrison | Garrison Relay disabled 5077 | -8/Garrison | Identified exit to Factory 5077 | -8/Garrison | Discovered exit to Factory (range 8) 5158 | -8/Garrison | Triggered checkpoint 5304 | -8/Garrison | Build established: Hacker-Mutant 5376 | -8/Garrison | Triggered checkpoint 5397 | -8/Garrison | Discovered exit to Factory (range 9) 5440 | -8/Garrison | Triggered checkpoint 5474 | -8/Garrison | Garrison Relay disabled 5634 | -8/Garrison | Spotted B-75 Beast 5844 | -8/Garrison | Discovered exit to Factory (range 9) 5872 | -8/Garrison | Triggered checkpoint 5932 | -8/Garrison | Entered Factory 5932 | -7/Factory | Accompanied by 1 ally 5932 | -7/Factory | Evolved 2 slots: Utility x2 6236 | -7/Factory | Build established: Hacker-Skirmisher 6368 | -7/Factory | Identified exit to Factory 6368 | -7/Factory | Discovered exit to Factory (range 15) 6863 | -7/Factory | Identified exit to Garrison 6865 | -7/Factory | Entered Garrison 6976 | -7/Garrison | Build established: Hacker-Gunner 7008 | -7/Garrison | Triggered checkpoint 7050 | -7/Garrison | Garrison Relay disabled 7246 | -7/Garrison | Triggered checkpoint 7364 | -7/Garrison | Triggered checkpoint 7382 | -7/Garrison | Garrison Relay disabled 7451 | -7/Garrison | Discovered exit to Factory (range 12) 7622 | -7/Garrison | Triggered checkpoint 7657 | -7/Garrison | Triggered checkpoint 7741 | -7/Garrison | Discovered exit to Factory (range 9) 7765 | -7/Garrison | Expanded RIF knowledge: Coupler Efficiency 7841 | -7/Garrison | Entered Factory 7841 | -6/Factory | Evolved 2 slots: Utility x2 8327 | -6/Factory | Identified exit to Garrison 8329 | -6/Factory | Entered Garrison 8410 | -6/Garrison | Triggered checkpoint 8524 | -6/Garrison | Garrison Relay disabled 8643 | -6/Garrison | Phase Generator disabled 8786 | -6/Garrison | Triggered checkpoint 8786 | -6/Garrison | Spotted B-75 Beast 8795 | -6/Garrison | Triggered checkpoint 8866 | -6/Garrison | Destroyed 9 combat bots 8936 | -6/Garrison | Build established: Bothacker-Tank 9100 | -6/Garrison | Destroyed B-75 Beast 9143 | -6/Garrison | Triggered checkpoint 9186 | -6/Garrison | Identified exit to Factory 9186 | -6/Garrison | Discovered exit to Factory (range 9) 9373 | -6/Garrison | Discovered exit to Factory (range 10) 9460 | -6/Garrison | Triggered checkpoint 9544 | -6/Garrison | Garrison Relay disabled 9792 | -6/Garrison | Discovered exit to Factory (range 9) 9815 | -6/Garrison | Expanded RIF knowledge: Alert ID Control 9848 | -6/Garrison | Triggered checkpoint 9861 | -6/Garrison | Garrison Relay disabled 9956 | -6/Garrison | Entered Factory 9956 | -6/Factory | Accompanied by 2 allies 10172 | -6/Factory | Fabricated Arm. Heavy Treads (x2) 10214 | -6/Factory | Build established: Botlord-Mutant 10494 | -6/Factory | Repaired Imp. Datajack 10966 | -6/Factory | Build established: Bothacker-Gunner 11099 | -6/Factory | Identified exit to Garrison 11101 | -6/Factory | Entered Garrison 11101 | -6/Garrison | Accompanied by 1 ally 11224 | -6/Garrison | Triggered checkpoint 11254 | -6/Garrison | Garrison Relay disabled 11345 | -6/Garrison | Spotted B-75 Beast 11498 | -6/Garrison | Phase Generator disabled 11630 | -6/Garrison | Triggered checkpoint 11633 | -6/Garrison | Allies destroyed B-75 Beast 11668 | -6/Garrison | Triggered checkpoint 11696 | -6/Garrison | Triggered checkpoint 11905 | -6/Garrison | Identified exit to Factory 11905 | -6/Garrison | Discovered exit to Factory (range 9) 11928 | -6/Garrison | Expanded RIF knowledge: Robot Detection 11974 | -6/Garrison | Triggered checkpoint 11999 | -6/Garrison | Garrison Relay disabled 12050 | -6/Garrison | Triggered checkpoint 12120 | -6/Garrison | Discovered exit to Factory (range 13) 12274 | -6/Garrison | Build established: Bothacker-Mutant 12315 | -6/Garrison | Discovered exit to Factory (range 13) 12349 | -6/Garrison | Entered Factory 12349 | -5/Factory | Accompanied by 3 allies 12349 | -5/Factory | Evolved 2 slots: Propulsion x1, Utility x1 13636 | -5/Factory | Garrison activated, responded to threat 13677 | -5/Factory | P-70 Sage assimilated allied Soldier 6e 13803 | -5/Factory | Identified exit to Garrison 13805 | -5/Factory | Entered Garrison 13805 | -5/Garrison | Accompanied by 4 allies 13896 | -5/Garrison | Phase Generator disabled 13992 | -5/Garrison | Build established: Botlord-Gunner 14130 | -5/Garrison | Triggered checkpoint 14168 | -5/Garrison | Triggered checkpoint 14277 | -5/Garrison | Triggered checkpoint 14279 | -5/Garrison | Triggered checkpoint 14493 | -5/Garrison | Garrison Relay disabled 14595 | -5/Garrison | Triggered checkpoint 14656 | -5/Garrison | Build established: Bothacker-Mutant 14848 | -5/Garrison | Garrison Relay disabled 14862 | -5/Garrison | Triggered checkpoint 14913 | -5/Garrison | Identified exit to Factory 14913 | -5/Garrison | Discovered exit to Factory (range 13) 15013 | -5/Garrison | Triggered checkpoint 15113 | -5/Garrison | Triggered checkpoint 15215 | -5/Garrison | Discovered exit to Factory (range 11) 15298 | -5/Garrison | Triggered checkpoint 15317 | -5/Garrison | Garrison Relay disabled 15428 | -5/Garrison | Discovered exit to Factory (range 14) 15460 | -5/Garrison | Expanded RIF knowledge: Watcher Feeds 15566 | -5/Garrison | Triggered checkpoint 15696 | -5/Garrison | Garrison Relay disabled 16009 | -5/Garrison | Build established: Botlord-Mutant 16521 | -5/Garrison | Entered Factory 16521 | -4/Factory | Accompanied by 4 allies 16521 | -4/Factory | Evolved 2 slots: Utility x2 16888 | -4/Factory | Fabricated Quantum Reactor? 16923 | -4/Factory | Local fabrication network quarantined 17084 | -4/Factory | Build established: Botlord-Gunner 17615 | -4/Factory | P-70 Sage assimilated allied Sentinel 7a 17902 | -4/Factory | Spotted B-86 Titan 19171 | -4/Factory | Identified exit to Research 19171 | -4/Factory | Discovered exit to Research (range 20) 19787 | -4/Factory | Discovered exit to Research (range 4) 20027 | -4/Factory | Identified exit to Garrison 20029 | -4/Factory | Entered Garrison 20070 | -4/Garrison | Triggered checkpoint 20113 | -4/Garrison | Garrison Relay disabled 20279 | -4/Garrison | Triggered checkpoint 20342 | -4/Garrison | Triggered checkpoint 20413 | -4/Garrison | Build established: Botlord-Mutant 20638 | -4/Garrison | Triggered checkpoint 20706 | -4/Garrison | Triggered checkpoint 20832 | -4/Garrison | Triggered checkpoint 20917 | -4/Garrison | Identified exit to Factory 20917 | -4/Garrison | Discovered exit to Factory (range 10) 21190 | -4/Garrison | Discovered exit to Factory (range 10) 21224 | -4/Garrison | Expanded RIF knowledge: Autooverride 21270 | -4/Garrison | Triggered checkpoint 21322 | -4/Garrison | Garrison Relay disabled 21467 | -4/Garrison | Discovered exit to Factory (range 11) 21497 | -4/Garrison | Triggered checkpoint 21563 | -4/Garrison | Garrison Relay disabled 21680 | -4/Garrison | Entered Factory 21680 | -4/Factory | Accompanied by 1 ally 21965 | -4/Factory | Discovered exit to Research (range 36) 22378 | -4/Factory | Found Prototype Processor 22378 | -4/Factory | Identified Exp. Targeting Computer 23187 | -4/Factory | Build established: Botlord-Gunner 24002 | -4/Factory | Fabricated Hvy. Siege Treads (x2) 24034 | -4/Factory | P-70 Sage assimilated allied Sentinel 7i 24066 | -4/Factory | Local fabrication network quarantined 24171 | -4/Factory | Identified exit to Garrison 24173 | -4/Factory | Entered Garrison 24173 | -4/Garrison | Accompanied by 2 allies 24259 | -4/Garrison | Phase Generator disabled 24269 | -4/Garrison | Garrison Relay disabled 24278 | -4/Garrison | Triggered checkpoint 24874 | -4/Garrison | Spotted B-86 Titan 24947 | -4/Garrison | Triggered checkpoint 24991 | -4/Garrison | Destroyed B-86 Titan 24991 | -4/Garrison | Triggered checkpoint 24993 | -4/Garrison | Lost 4 parts (2u2w) 25212 | -4/Garrison | Build established: Botlord-Tank 25471 | -4/Garrison | Discovered exit to Research (range 14) 25556 | -4/Garrison | Triggered checkpoint 25577 | -4/Garrison | Garrison Relay disabled 25741 | -4/Garrison | Triggered checkpoint 25776 | -4/Garrison | Garrison Relay disabled 25820 | -4/Garrison | Discovered exit to Research (range 19) 25865 | -4/Garrison | Expanded RIF knowledge: Crosswire 25957 | -4/Garrison | Triggered checkpoint 25961 | -4/Garrison | Build established: Botlord-Gunner 26056 | -4/Garrison | Discovered exit to Research (range 13) 26188 | -4/Garrison | Triggered checkpoint 26249 | -4/Garrison | Garrison Relay disabled 26638 | -4/Garrison | Entered Research 26638 | -3/Research | Accompanied by 1 ally 26638 | -3/Research | Evolved 2 slots: Propulsion x1, Utility x1 26760 | -3/Research | Found Unknown Launcher 26760 | -3/Research | Identified Fusion Bomb Launcher 26939 | -3/Research | P-80 Master assimilated allied Sentinel 7k 27469 | -3/Research | Spotted B-86 Titan 27550 | -3/Research | Build established: Botlord-Tank 27850 | -3/Research | Build established: Botlord-Mutant 27963 | -3/Research | Garrison activated, responded to threat 28056 | -3/Research | Identified exit to Garrison 28058 | -3/Research | Entered Garrison 28058 | -3/Garrison | Accompanied by 5 allies 28066 | -3/Garrison | Expanded RIF knowledge: Threat Obfuscation 28182 | -3/Garrison | Garrison Relay disabled 28332 | -3/Garrison | Spotted B-86 Titan 28336 | -3/Garrison | Triggered checkpoint 28358 | -3/Garrison | Triggered checkpoint 28368 | -3/Garrison | Destroyed B-86 Titan 28371 | -3/Garrison | Triggered checkpoint 28643 | -3/Garrison | Found Adv. Powered Armor 28648 | -3/Garrison | Found Adv. Powered Armor 28712 | -3/Garrison | Triggered checkpoint 28722 | -3/Garrison | Identified exit to Research 28722 | -3/Garrison | Discovered exit to Research (range 19) 28809 | -3/Garrison | Garrison Relay disabled 28889 | -3/Garrison | Spotted B-86 Titan 28943 | -3/Garrison | Build established: Botlord-Tank 28949 | -3/Garrison | Discovered exit to Research (range 10) 29045 | -3/Garrison | Garrison Relay disabled 29168 | -3/Garrison | Triggered checkpoint 29250 | -3/Garrison | Discovered exit to Research (range 13) 29287 | -3/Garrison | Build established: Botlord-Mutant 29377 | -3/Garrison | Triggered checkpoint 29425 | -3/Garrison | Garrison Relay disabled 29844 | -3/Garrison | Triggered checkpoint 30020 | -3/Garrison | Entered Research 30020 | -3/Research | Accompanied by 13 allies 30153 | -3/Research | Identified exit to Quarantine 30153 | -3/Research | Discovered exit to Quarantine (range 15) 30723 | -3/Research | Build established: Botlord-Gunner 30862 | -3/Research | Garrison activated, responded to threat 31305 | -3/Research | Found Prototype Protection 31305 | -3/Research | Identified Centrium Heavy Armor Plating 31548 | -3/Research | Identified exit to Armory 31548 | -3/Research | Discovered exit to Armory (range 7) 31606 | -3/Research | Found Fusion Bomb Launcher 32058 | -3/Research | Build established: Botlord-Tank 32090 | -3/Research | P-80 Master assimilated allied Enforcer 8b 32336 | -3/Research | Identified exit to Research 32336 | -3/Research | Discovered exit to Research (range 18) 32526 | -3/Research | Build established: Botlord-Gunner 32546 | -3/Research | Spotted B-86 Titan 32589 | -3/Research | Garrison activated, responded to threat 32638 | -3/Research | Identified exit to Garrison 32639 | -3/Research | Entered Garrison 32724 | -3/Garrison | Triggered checkpoint 32753 | -3/Garrison | Garrison Relay disabled 33002 | -3/Garrison | Spotted B-86 Titan 33045 | -3/Garrison | Destroyed B-86 Titan 33066 | -3/Garrison | Destroyed 7 combat bots 33082 | -3/Garrison | Triggered checkpoint 33103 | -3/Garrison | Triggered checkpoint 33133 | -3/Garrison | Triggered checkpoint 33405 | -3/Garrison | Build established: Botlord-Mutant 33556 | -3/Garrison | Discovered exit to Research (range 19) 33652 | -3/Garrison | Triggered checkpoint 33714 | -3/Garrison | Garrison Relay disabled 33881 | -3/Garrison | Discovered exit to Research (range 8) 33904 | -3/Garrison | Expanded RIF knowledge: Threat Obfuscation 34034 | -3/Garrison | Garrison Relay disabled 34104 | -3/Garrison | Triggered checkpoint 34249 | -3/Garrison | Garrison Relay disabled 34293 | -3/Garrison | Discovered exit to Research (range 19) 34932 | -3/Garrison | Entered Research 34932 | -2/Research | Accompanied by 2 allies 34932 | -2/Research | Evolved 2 slots: Power x1, Propulsion x1 35346 | -2/Research | Destroyed 7 combat bots 35523 | -2/Research | Identified exit to Access 35523 | -2/Research | Discovered exit to Access (range 24) 35708 | -2/Research | Spotted B-90 Cyclops 35750 | -2/Research | Allies destroyed B-90 Cyclops 35814 | -2/Research | Garrison activated, responded to threat 36038 | -2/Research | Identified exit to Testing 36038 | -2/Research | Discovered exit to Testing (range 25) 36103 | -2/Research | Identified exit to Garrison 36106 | -2/Research | Entered Garrison 36106 | -2/Garrison | Accompanied by 2 allies 36144 | -2/Garrison | Triggered checkpoint 36186 | -2/Garrison | Garrison Relay disabled 36387 | -2/Garrison | Triggered checkpoint 36391 | -2/Garrison | Spotted B-90 Cyclops 36427 | -2/Garrison | Found Gamma Bomb Array 36663 | -2/Garrison | Triggered checkpoint 36674 | -2/Garrison | Triggered checkpoint 36780 | -2/Garrison | Triggered checkpoint 36844 | -2/Garrison | Discovered exit to Access (range 14) 37016 | -2/Garrison | Triggered checkpoint 37016 | -2/Garrison | Garrison Relay disabled 37231 | -2/Garrison | Discovered exit to Access (range 11) 37256 | -2/Garrison | Expanded RIF knowledge: Structural Interface 37328 | -2/Garrison | Triggered checkpoint 37366 | -2/Garrison | Found Antimissile System 37435 | -2/Garrison | Garrison Relay disabled 37594 | -2/Garrison | Garrison Relay disabled 37612 | -2/Garrison | Triggered checkpoint 37743 | -2/Garrison | Entered Access 37743 | -1/Access | Accompanied by 7 allies 37743 | -1/Access | Evolved 2 slots: Utility x1, Weapon x1 37991 | -1/Access | P-80 Master assimilated allied Enforcer 9d 38010 | -1/Access | P-80 Master assimilated allied Warden 9e 38021 | -1/Access | P-80 Master assimilated allied Enforcer 9e 38541 | -1/Access | P-80 Master assimilated allied Enforcer 10a 38700 | -1/Access | Spotted B-99 Colossus 38710 | -1/Access | Identified exit to Garrison 38732 | -1/Access | Allies destroyed B-99 Colossus 38957 | -1/Access | Identified exit to Garrison 39020 | -1/Access | Garrison activated, responded to threat 39042 | -1/Access | Entered Garrison 39042 | -1/Garrison | Accompanied by 2 allies 39050 | -1/Garrison | Expanded RIF knowledge: Command Fork 39105 | -1/Garrison | Found Gamma Bomb Array 39178 | -1/Garrison | Triggered checkpoint 39209 | -1/Garrison | Garrison Relay disabled 39390 | -1/Garrison | Spotted B-99 Colossus 39407 | -1/Garrison | Triggered checkpoint 39407 | -1/Garrison | Triggered checkpoint 39537 | -1/Garrison | Lost 3 parts (3u) 39588 | -1/Garrison | Destroyed B-99 Colossus 39618 | -1/Garrison | Lost 3 parts (2p1w) 39745 | -1/Garrison | Build established: Botlord-Tank 39833 | -1/Garrison | Triggered checkpoint 39836 | -1/Garrison | Triggered checkpoint 40002 | -1/Garrison | Identified exit to Access 40002 | -1/Garrison | Discovered exit to Access (range 11) 40020 | -1/Garrison | Found Fusion Bomb Launcher 40022 | -1/Garrison | Found Antimissile System 40096 | -1/Garrison | Garrison Relay disabled 40331 | -1/Garrison | Discovered exit to Access (range 2) 40370 | -1/Garrison | Triggered checkpoint 40370 | -1/Garrison | Garrison Relay disabled 40376 | -1/Garrison | Build established: Botlord-Mutant 40530 | -1/Garrison | Triggered checkpoint 40549 | -1/Garrison | Garrison Relay disabled 40634 | -1/Garrison | Discovered exit to Access (range 4) 40658 | -1/Garrison | Entered Access 40658 | -1/Access | Accompanied by 8 allies 40699 | -1/Access | Found Fusion Bomb Launcher 40993 | -1/Access | Garrison activated, responded to threat 41249 | -1/Access | P-80 Master assimilated allied Enforcer 10j 41854 | -1/Access | Energy Cycler disabled 42229 | -1/Access | Garrison activated, responded to threat 43058 | -1/Access | Identified exit to Surface 43058 | -1/Access | Discovered exit to Surface (range 5) 43075 | -1/Access | System corruption reached 10% 43195 | *** | Escaped! Last Messages --------------- 42990_ Acquired 35 matter. 42992_ Acquired 2 matter. 43007_ Destroyed Antigrav System. 43010_ Dropped Imp. Weapon Shielding. 43013_ System corrupted: Heat flow error (+115). 43016_ Acquired Biometal Heavy Treads. 43058_ The Access Shell folds into the floor. 43058_ EXIT=FOUND: SURFACE 43074_ Slug penetrates P-80 Master. 43074_ Slug penetrates Wall. 43074_ P-80 Master destroyed. 43096_ Acquired 51 matter. 43098_ Acquired 3 matter. 43116_ System corrupted: Matter fused (-8). 43136_ ,MSFCE6RJSR#KY#FIP01 43158_ ALERT: Rogue bot located, Programmers report to Access Zone 1X. [Achievement: Punisher] [Achievement: Straight Shot] [Achievement: Victory By Combat] [Achievement: One Last FU] Map ----- +----------------------------------------------------+ | ## """"" ### #??# "" # #??????? | | ## """"" + #??# "T ! # #??????? | | #### """"" # #??# "" #=######## | | #= """"" # #### "" + [% | | ]# """"" + + # %% | | # """"" ############ # %####### | | # #??????????# + =#?????# | | # #??????????# # #?????# | | | ?# #??????????# # #?????# | | ???#######+######??????????############## ##????# | | ####### ! = ############################ #????# | | !| #????# | | #????# | | ######## ######### ""######### #????# | | ???????######???????# ""#?????#### #####??# | | ??????????????????# ""#?????# ! #??# | | !#?????????????????# T#?????# #??# | | #?????????????????# ""#?????# " #??# | | #?????????????????# ""#?????# """ #??? | | #????????????????## ""##????# """#??? | | #????????????????# #????# " #??? | | #????????????????## ##????# #??? | | ###?????????????????# #?????# #??? | | ????????????????????# Y #?????# #??? | | ????????????????????# #?????##########??? | | ????????????????????# @" #?????????????????? | | ????????????????????# "" #?????????????????? | | ????????????????????# #?????????????????? | | ????????????????????# #?????????????????? | | ????????????????????# #?????????????????? | | ????????????????????#""""""""""#?????????????????? | | ?????????????????????????????????????????????????? | | ?????????????????????????????????????????????????? | | ?????????????????????????????????????????????????? | | ?????????????????????????????????????????????????? | | ?????????????????????????????????????????????????? | | ?????????????????????????????????????????????????? | | ?????????????????????????????????????????????????? | | ?????????????????????????????????????????????????? | | ?????????????????????????????????????????????????? | | ?????????????????????????????????????????????????? | | ?????????????????????????????????????????????????? | | ?????????????????????????????????????????????????? | | ?????????????????????????????????????????????????? | | ?????????????????????????????????????????????????? | | ?????????????????????????????????????????????????? | | ?????????????????????????????????????????????????? | | ?????????????????????????????????????????????????? | | ?????????????????????????????????????????????????? | | ?????????????????????????????????????????????????? | +----------------------------------------------------+ Best States ------------- Heat Dissipation 104 Coolant Potential 120 Energy Generation 47 Energy Capacity 590 Matter Stores 550 Matter Capacity 550 Sight Range 22 Robot Scan Range 18 Terrain Scan Density 10 Corruption Prevention 20 Armor Coverage 2300 Resistance: KI 35 Resistance: TH 35 Resistance: EX 35 Resistance: EM 35 Resistance: I 35 Resistance: S 35 Resistance: P 35 Weapon Shielding 66 Point Defense Rating 240 Evasion (%) 55 Targeting Accuracy 20 Core Analysis 10 Recoil Reduction 6 Offensive Hacking 20 Relay Coupler Types 324 Relay Coupler Value 7 Item Schematics ----------------- Sensor Array | -10/Materials | Hacked Disposable Heat Sink | -9/Materials | Scanalyzed Adv. Targeting Computer | -8/Materials | Scanalyzed Powered Hammer | -4/Factory | Scanalyzed Hvy. Siege Treads | -4/Factory | Scanalyzed Robot Schematics ------------------ None Fabricated ------------ Arm. Heavy Treads | x2 | -6/Factory | Preloaded Quantum Reactor | x2 | -4/Factory | Preloaded Hvy. Siege Treads | x2 | -4/Factory Alien Tech Used ----------------- None Achievements -------------- Giant Slayer One Last FU Punisher Pwned Straight Shot Turtlemind Victory By Combat Challenges ------------ None Game ------ Seed CombatDecoderFlail Manual? 0 Play Time 09:32:20 Cumulative 206.3 hours Start 2021.05.13 @ 21:27:28 End 2021.05.16 @ 02:14:06 Sessions 7 Manual Loads 0 Difficulty Explorer Special Mode None Game No. 89 Rogue 68 Adventurer 0 Explorer 21 Win Type 0 Total 6 Types 4/1/1/0/0/0/0/0/0 Lore% 63 Gallery% 67 Achievement% 57 Wizard Run 0 Options --------- ASCII 1 Keyboard 1 Movement Numpad Keybinds 0 Fullscreen 1 Font 18/SmallcapsGlow Map View 76x50 Tactical HUD 1 Map Filters NONE Filters NONE Steam 1 RUN: 0fac6279-a53e-492d-9445-bccbf9a2a848